[Event "EYTCC Open U18 2022"]
[Site "Thessaloniki"]
[Date "2022.07.18"]
[Round "7.26"]
[White "Prokofiev, Valentyn"]
[Black "Olsson, William"]
[Result "0-1"]
[ECO "D10"]
[WhiteElo "2286"]
[BlackElo "2284"]
[Annotator "TA"]
[PlyCount "64"]
[EventDate "2022.07.12"]
[EventType "team-tourn"]
[EventCountry "GRE"]
[SourceTitle "playchess.com"]
[Source "ChessBase"]
[SourceQuality "1"]
[WhiteTeam "Ukraine"]
[BlackTeam "Sweden"]
[WhiteTeamCountry "UKR"]
[BlackTeamCountry "SWE"]
[TimeControl "40/5400+30:1800+30"]

{[%evp 16,64,37,0,7,0,67,18,29,19,27,19,28,-9,36,-29,-33,-36,-11,-46,0,-56,-53,-208,-80,-157,-172,-174,-172,-354,-339,-341,-341,-1062,-1061,-1210,-1201,-29990,-1572,-29983,-29984,-29984,-29985,-29985,-29986,-29986,-29987,-29987,-29988,-29986,-29987]} 1. d4 {[%emt 0:00:03]} d5 {[%emt 0:00:02]} 2. c4 {[%emt 0:00:03]} c6 {[%emt 0:00:03]} 3. cxd5 {[%emt 0:00:04]} cxd5 {[%emt 0:00:06]} 4. Bf4 {[%emt 0:00:02]} Nc6 {[%emt 0:00:15]} 5. Nc3 {[%emt 0:00:08]} Nf6 {[%emt 0:00:18]} 6. e3 {[%emt 0:00:06]} a6 {[%emt 0:00:44]} 7. Bd3 {[%emt 0:03:00]} e6 {[%emt 0:02:45]} 8. Nf3 {[%emt 0:02:16] outshines the older 8.Rc1.} Be7 {[%emt 0:00:17]} 9. O-O {[%emt 0:00:20]} Nh5 {[%emt 0:01:04] D13: Slav Defence: Exchange variation without ...Bf5.} 10. Be5 {[%emt 0:01:23]} Nxe5 {[%emt 0:01:57]} (10... f6 $11 11. Bg3 Nb4) 11. Nxe5 {[%emt 0:00:48]} (11. dxe5 $14 g6 12. e4) 11... Nf6 $11 {[%emt 0:00:38] The position is equal.} 12. f4 {[%emt 0:08:41] [#]} g6 $146 {[%emt 0:05:53]} ({Predecessor:} 12... O-O 13. Qc2 h6 14. Rac1 Bd7 15. Qe2 Rc8 16. Bb1 g6 17. g4 Bd6 18. Kh1 Be8 {1-0 (31) Mrkonjic,N (2352)-Gardijan,M (2155) Osijek 2005}) 13. g4 {[%emt 0:04:24]} Nd7 {[%emt 0:07:39]} 14. Rc1 {[%emt 0:56:22]} O-O {[%emt 0:09:02]} 15. Qc2 {[%emt 0:01:31]} (15. Nf3 $14) 15... Nxe5 $1 {[%emt 0:02:30]} 16. dxe5 {[%emt 0:01:24]} Bc5 {[%emt 0:03:50]} 17. Rf3 {[%emt 0:00:33]} Bb6 {[%emt 0:03:43]} (17... Bd7 $15 {is more appropriate.}) 18. Rcf1 {[%emt 0:01:49]} (18. Na4 $11) 18... Bd7 $15 {[%emt 0:03:50]} 19. Qf2 $2 {[%emt 0:04:52] [#]} ({White should play} 19. Ne2 $15) 19... Bc6 {[%emt 0:05:28]} (19... d4 $1 $19 {[%cal Rd4c3] and Black stays clearly on top.} 20. Ne4 (20. exd4 $2 Bc6 $19) 20... dxe3 21. Rxe3 Bc6 22. Nf6+ Kg7) 20. Ne2 {[%emt 0:01:50]} ({White should try} 20. Nd1) 20... d4 $1 $17 {[%emt 0:01:49]} 21. e4 {[%emt 0:00:12] [#]} Bxe4 $1 {[%emt 0:00:07]} 22. f5 $2 {[%emt 0:02:59]} ({Wrong is} 22. Bxe4 $2 d3 23. Re3 dxe2 $19) (22. Ng3 Bxf3 23. Qxf3) 22... exf5 {[%emt 0:01:07]} 23. gxf5 {[%emt 0:04:20]} Bxf3 {[%emt 0:00:30] A strong pair of Bishops.} 24. f6 $2 {[%emt 0:02:42]} (24. Qxf3 Qe7 25. e6) 24... Bc6 $19 {[%emt 0:04:00]} 25. Qh4 {[%emt 0:00:31]} Qd5 {[%emt 0:00:09][%csl Gc6,LRa2,LRe5][%cal Rd5g2]} 26. Kf2 {[%emt 0:01:12]} Qxe5 {[%emt 0:00:17]} (26... Qf3+ $142 27. Ke1 Ba5+ 28. Nc3 Qe3+ 29. Kd1 dxc3 30. bxc3 Bxc3 31. Rf2 Qxd3+ 32. Kc1 Rfd8 33. Qg4 Be4 34. Qxg6+ hxg6 35. h4 Qd1#) 27. Ke1 {[%emt 0:00:39]} Ba5+ {[%emt 0:01:00] Black mates.} 28. Kd1 {[%emt 0:00:28]} Qe3 {[%emt 0:00:05][%csl Ga5][%cal Re3d2]} 29. Kc2 {[%emt 0:01:17]} Qd2+ {[%emt 0:00:31]} 30. Kb1 {[%emt 0:00:11]} Qxd3+ {[%emt 0:00:05]} 31. Ka1 {[%emt 0:00:01]} Qxe2 {[%emt 0:00:14]} 32. Rb1 {[%emt 0:00:09]} Bd2 {[%emt 0:00:11] Weighted Error Value: White=1.26/Black=0.44} 0-1

[Event "EYTCC Open U18 2022"]
[Site "Thessaloniki"]
[Date "2022.07.18"]
[Round "7.27"]
[White "Wernberg, Hugo"]
[Black "Hulka, Valentyn"]
[Result "0-1"]
[ECO "A28"]
[WhiteElo "2316"]
[BlackElo "2123"]
[Annotator "TA"]
[PlyCount "184"]
[EventDate "2022.07.12"]
[EventType "team-tourn"]
[EventCountry "GRE"]
[SourceTitle "playchess.com"]
[Source "ChessBase"]
[SourceQuality "1"]
[WhiteTeam "Sweden"]
[BlackTeam "Ukraine"]
[WhiteTeamCountry "SWE"]
[BlackTeamCountry "UKR"]
[TimeControl "40/5400+30:1800+30"]

{[%evp 9,184,9,6,-16,-12,-11,-4,-26,-16,-21,4,-26,-18,-42,-39,-39,0,-17,-19,-22,-29,-18,-5,-52,-46,-54,-59,-56,-59,-50,-50,-202,-184,-187,-185,-223,-138,-299,-304,-296,-307,-299,-194,-193,-75,-240,-193,-205,-192,-227,-223,-344,-343,-334,-287,-308,-301,-500,-496,-530,-523,-470,-462,-535,-391,-524,-516,-704,-704,-704,-599,-700,-663,-697,-683,-473,-385,-683,-385,-691,-633,-654,-617,-561,-410,-443,-357,-292,-247,-220,-184,-164,-151,-143,-98,-160,-169,-259,-231,-232,-197,-258,-254,-252,-179,-177,-173,-170,-163,-158,-164,-161,-159,-224,-202,-224,-237,-216,-121,-107,-115,-107,-103,-97,-86,-144,-143,-145,-143,-143,-143,-145,-161,-191,-191,-200,-206,-239,-191,-201,-181,-339,-223,-252,-251,-244,-214,-29959,-29961,-29953,-29961,-29958,-5835,-29970,-29972,-29972,-29972,-29973,-29974,-29975,-29974,-29974,-29973,-29976,-29969,-29978,-29979,-29979,-29980,-29980,-29981,-29981,-29981,-29981,-29982,-29982,-29982]} 1. c4 {[%emt 0:00:07]} e5 {[%emt 0:00:03]} 2. Nc3 {[%emt 0:00:12]} Nf6 {[%emt 0:00:04]} 3. Nf3 {[%emt 0:00:17]} Nc6 {[%emt 0:00:05]} 4. e4 {[%emt 0:00:12]} Bb4 {[%emt 0:00:11]} 5. d3 {[%emt 0:00:10]} d6 {[%emt 0:00:03]} 6. h3 {[%emt 0:00:13] A28: English Opening: Four Knights Variation.} O-O {[%emt 0:03:28]} 7. g3 {[%emt 0:00:11]} a6 {[%emt 0:01:41]} 8. Bg2 {[%emt 0:01:48] The position is equal.} h6 {[%emt 0:05:04]} 9. O-O {[%emt 0:00:25] [#]} Rb8 $146 {[%emt 0:06:00]} ({Predecessor:} 9... Bc5 10. Kh2 Rb8 11. a4 a5 12. Ng1 Nd4 13. f4 c6 14. Nf3 Nd7 15. f5 Nxf3+ 16. Qxf3 {½-½ (44) Nepomniachtchi,I (2735)-Eljanov,P (2732) Poikovsky 2014}) 10. Nd2 {[%emt 0:04:43]} b5 {[%emt 0:03:26]} 11. f4 {[%emt 0:08:28]} Nd4 {[%emt 0:08:58]} 12. Kh2 {[%emt 0:06:08]} c6 {[%emt 0:03:41]} 13. Nf3 {[%emt 0:04:17]} (13. a3 $5 {[%cal Ra3b4]} Ba5 14. b4 $11) 13... Bc5 {[%emt 0:18:52]} 14. Nxd4 {[%emt 0:12:12]} Bxd4 {[%emt 0:00:19]} 15. Ne2 {[%emt 0:02:14]} Bc5 {[%emt 0:05:51]} 16. d4 {[%emt 0:08:52]} (16. Qc2 $11 {was preferrable.}) 16... exd4 $15 {[%emt 0:00:07]} 17. Nxd4 {[%emt 0:00:10]} Qb6 {[%emt 0:00:31]} 18. Nb3 {[%emt 0:18:10]} bxc4 {[%emt 0:01:08]} 19. Nxc5 {[%emt 0:00:11]} Qxc5 {[%emt 0:00:03]} 20. b4 $2 {[%emt 0:01:24]} (20. b3 $15) 20... Qxb4 $19 {[%emt 0:05:29]} (20... Rxb4 21. Ba3 $17) 21. a4 {[%emt 0:00:26]} Rd8 {[%emt 0:06:39]} 22. Ba3 {[%emt 0:00:24]} Qb6 {[%emt 0:02:51]} 23. Bxd6 $2 {[%emt 0:12:17]} (23. Qe2 $17) 23... Ne8 {[%emt 0:00:38]} ({And not} 23... Qb2 24. e5 Ne4 25. Rb1 Qxb1 26. Qxb1 Rxb1 27. Rxb1 Nxd6 28. exd6 $17) 24. e5 {[%emt 0:00:14]} Nxd6 {[%emt 0:00:31]} 25. exd6 {[%emt 0:00:09]} c5 {[%emt 0:00:24]} 26. Qc2 {[%emt 0:08:20]} Qb2 {[%emt 0:00:48]} ({Weaker is} 26... Qxd6 27. Rad1 Qc7 28. Rxd8+ Qxd8 29. Qxc4 $17) (26... Rxd6 27. Rab1 Qc7 28. Rxb8 Qxb8 29. Qxc4) (26... Qb3 $19 {and Black stays clearly on top.} 27. Qf2 Bf5 28. Qxc5 Bd3) 27. Ra2 $2 {[%emt 0:03:48]} (27. Qxc4 $17 {only move.} Qb4 28. Rac1) 27... Qxc2 {[%emt 0:00:04]} 28. Rxc2 {[%emt 0:00:07]} Rxd6 {[%emt 0:00:06] And now ...Bf5 would win.} 29. Rxc4 {[%emt 0:02:50]} Rb2 {[%emt 0:02:09]} 30. Kg1 {[%emt 0:00:12]} (30. Kh1 $142) 30... Rdd2 {[%emt 0:01:07]} 31. Be4 {[%emt 0:01:05]} Bxh3 {[%emt 0:01:18]} 32. Rxc5 {[%emt 0:00:54]} g6 {[%emt 0:01:08]} 33. Re1 {[%emt 0:02:52]} (33. Rb1 {was called for.} Rxb1+ 34. Bxb1) 33... Bg2 {[%emt 0:00:51]} 34. Bxg2 {[%emt 0:02:49]} Rxg2+ {[%emt 0:00:01][%mdl 4096] Endgame KRR-KRR} 35. Kh1 {[%emt 0:00:16]} Rxg3 {[%emt 0:00:12]} 36. f5 {[%emt 0:00:45]} Rg5 {[%emt 0:01:01]} 37. Rc8+ {[%emt 0:00:14]} Kg7 {[%emt 0:00:07]} 38. fxg6 {[%emt 0:00:21]} Rb4 {[%emt 0:00:18][%cal Rb4h4]} 39. Re2 {[%emt 0:00:51]} Rxg6 {[%emt 0:00:50]} 40. a5 {[%emt 0:00:00]} Rb5 {[%emt 0:00:00]} 41. Rc3 {[%emt 0:02:10]} Rh5+ {[%emt 0:00:53]} 42. Rh2 {[%emt 0:00:12]} Rxa5 {[%emt 0:00:03] ( -> ...Ra1+)} 43. Rc1 {[%emt 0:00:33] Prevents Ra1.} (43. Rh4) 43... Rgg5 {[%emt 0:00:24]} 44. Rb2 $2 {[%emt 0:01:35]} (44. Rh4) 44... Rg4 {[%emt 0:00:29]} 45. Rh2 {[%emt 0:00:35]} Ra3 {[%emt 0:00:06]} 46. Rh5 {[%emt 0:00:53]} a5 {[%emt 0:00:13]} 47. Rc6 {[%emt 0:00:51]} Raa4 {[%emt 0:00:50] Hoping for ...Rg5.} 48. Rcxh6 {[%emt 0:01:18]} Rg6 {[%emt 0:03:28]} 49. Rh7+ {[%emt 0:04:57]} Kf6 {[%emt 0:00:09]} 50. Rb5 {[%emt 0:01:36]} Ra1+ {[%emt 0:03:11]} 51. Kh2 {[%emt 0:00:14]} Ke6 {[%emt 0:00:46]} 52. Rb6+ {[%emt 0:12:03]} (52. Rhh5 $142) 52... Kd5 $17 {[%emt 0:00:07]} 53. Rb7 {[%emt 0:00:05]} (53. Rh5+ {keeps fighting.} Kd4 54. Rb7) 53... Rf6 {[%emt 0:00:56]} 54. Ra7 {[%emt 0:02:01]} Kc5 {[%emt 0:02:33]} ({Worse is} 54... a4 55. Rh4) 55. Kg2 {[%emt 0:02:25]} (55. Rh8 $142) 55... Kb6 $19 {[%emt 0:00:39]} 56. Ra8 {[%emt 0:00:43]} Kb7 {[%emt 0:00:09]} 57. Rhh8 {[%emt 0:00:34]} Rb6 {[%emt 0:01:40]} 58. Rab8+ {[%emt 0:02:00]} Ka6 {[%emt 0:00:32]} 59. Ra8+ {[%emt 0:00:25]} Kb5 {[%emt 0:00:01]} 60. Rh5+ {[%emt 0:01:47]} Kb4 {[%emt 0:00:01]} 61. Rh4+ {[%emt 0:00:14]} (61. Rf5 $17) 61... Kb3 {[%emt 0:00:00]} 62. Rh3+ {[%emt 0:00:32]} Kb2 {[%emt 0:00:01]} 63. Rf3 {[%emt 0:02:40]} Rc6 {[%emt 0:06:22]} (63... Rg6+ $19 64. Kf2 a4 65. Rxf7 Rb6) 64. Rb8+ $17 {[%emt 0:00:50]} Kc2 {[%emt 0:00:15]} 65. Rf2+ {[%emt 0:00:26]} Kc3 {[%emt 0:00:04]} 66. Rf3+ {[%emt 0:00:48]} Kc4 {[%emt 0:00:01]} 67. Rf4+ {[%emt 0:00:19]} (67. Rxf7 $142 a4 68. Rf4+ Kc3 69. Rf3+ Kd4 70. Rd8+ Kc4 71. Rf4+ Kc3 72. Rf3+ Kc4 73. Rf4+ Kc3 74. Rf3+ Kc4) 67... Kd5 {[%emt 0:00:21]} 68. Ra8 {[%emt 0:00:57][%cal Oa8a5]} Ke6 {[%emt 0:01:08] White must now prevent ...Rc2+.} 69. Re8+ {[%emt 0:01:07] [#]} Kd7 $1 {[%emt 0:00:08]} 70. Ra8 {[%emt 0:00:33]} f6 {[%emt 0:05:26]} 71. Ra7+ {[%emt 0:00:47]} Ke6 {[%emt 0:00:06] ...Rc2+ is the strong threat.} 72. Re4+ {[%emt 0:00:16]} Kf5 {[%emt 0:00:01]} 73. Re2 {[%emt 0:00:20]} a4 {[%emt 0:00:12]} 74. Rf2+ {[%emt 0:00:18]} Kg6 {[%emt 0:00:00]} 75. Rf3 $2 {[%emt 0:00:41]} (75. Kf3 {is a better defense.}) 75... Rc5 {[%emt 0:01:10] aiming for ...Rf5.} 76. Ra8 {[%emt 0:00:47]} Ra2+ {[%emt 0:00:19]} 77. Kg3 {[%emt 0:00:31]} Rb5 {[%emt 0:00:00] Strongly threatening ...Rb3.} 78. Rf4 $2 {[%emt 0:00:35] [#]} (78. Rf8 $19) 78... Rb3+ {[%emt 0:00:22]} 79. Rf3 {[%emt 0:00:33]} Rxf3+ {[%emt 0:02:25]} 80. Kxf3 {[%emt 0:00:08] KR-KR} a3 {[%emt 0:00:10]} (80... Ra1 $142 81. Rg8+ Kf5 82. Re8 a3 83. Re2 a2 84. Rf2 Ke5 85. Re2+ Kd6 86. Rf2 f5 87. Kf4 Kc5 88. Rc2+ Kd4 89. Rf2 Kc4 90. Kxf5 Kd3 91. Kf4 Kd4 92. Rd2+ Kc4 93. Rf2 Kb3 94. Rf3+ Kc4 95. Rf2 Kd5 96. Rd2+ Kc6 97. Rf2 Kb5 98. Kf5 Kc5 99. Kf4 Kd6 100. Kf5 Kd5 101. Rd2+ Kc4 102. Rf2 Kb5 103. Rb2+ Kc6 104. Rc2+ Kb7 105. Rb2+ Ka7 106. Rf2 Ka6 107. Kf4 Ka5 108. Kf5 Kb6 109. Rb2+ Kc6 110. Rc2+ Kd6 111. Rd2+ Kc7 112. Rc2+ Kb7 113. Rf2 Ka7 114. Rf3 Kb6 115. Rf2 Kc7 116. Kf6 Kd6 117. Kf5 Kd5 118. Rd2+ Kc5 119. Rf2 Kd5) 81. Ra5 {[%emt 0:00:35]} Ra1 {[%emt 0:00:17] Black mates.} 82. Kg3 {[%emt 0:00:25]} Kf7 {[%emt 0:00:06]} 83. Ra6 {[%emt 0:00:13]} Ke7 {[%emt 0:00:12]} 84. Kf3 {[%emt 0:00:11]} Kd7 {[%emt 0:00:36]} 85. Kg2 {[%emt 0:00:29]} f5 {[%emt 0:00:26][%cal Bf6f5,Bf5f4,Bf4f3][%mdl 32]} 86. Ra5 {[%emt 0:00:18]} Ke6 {[%emt 0:00:05]} 87. Kf3 {[%emt 0:00:17]} a2 {[%emt 0:01:15]} 88. Kg2 {[%emt 0:00:12]} f4 {[%emt 0:00:04]} 89. Ra6+ {[%emt 0:00:36]} Kd5 {[%emt 0:00:05]} 90. Ra5+ {[%emt 0:00:13]} Kc6 {[%emt 0:00:06]} 91. Ra6+ {[%emt 0:00:46]} Kb5 {[%emt 0:00:05]} 92. Ra8 {[%emt 0:00:25]} f3+ {[%emt 0:00:26] Weighted Error Value: White=0.63/Black=0.31} 0-1

[Event "EYTCC Open U18 2022"]
[Site "Thessaloniki"]
[Date "2022.07.18"]
[Round "7.28"]
[White "Podolskyi, Mykhailo"]
[Black "Soderstrom, Adrian"]
[Result "0-1"]
[ECO "D45"]
[WhiteElo "2025"]
[BlackElo "2292"]
[Annotator "TA"]
[PlyCount "98"]
[EventDate "2022.07.12"]
[EventType "team-tourn"]
[EventCountry "GRE"]
[SourceTitle "playchess.com"]
[Source "ChessBase"]
[SourceQuality "1"]
[WhiteTeam "Ukraine"]
[BlackTeam "Sweden"]
[WhiteTeamCountry "UKR"]
[BlackTeamCountry "SWE"]
[TimeControl "40/5400+30:1800+30"]

{[%evp 19,98,0,8,-41,-38,-63,-44,-43,-33,-37,-47,-154,-134,-143,-147,-154,-134,-165,-167,-133,-93,-197,-191,-197,-197,-209,-222,-158,-74,-183,-146,-145,-145,-133,-120,-115,-114,-118,-34,-70,-72,-108,-105,-117,-115,-110,-112,-117,-113,-148,-147,-137,-135,-283,-215,-316,-197,-433,-143,-277,-278,-277,-219,-189,-182,-134,-93,-97,-24,-24,-21,-264,-264,-372,-371,-3334,-2650,-29972,-29974,-29973,-29973]} 1. d4 {[%emt 0:00:27]} d5 {[%emt 0:00:14]} 2. c4 {[%emt 0:00:34]} e6 {[%emt 0:00:38]} 3. Nc3 {[%emt 0:01:13]} c6 {[%emt 0:00:07]} 4. e3 {[%emt 0:00:37]} Nf6 {[%emt 0:00:09]} 5. Nf3 {[%emt 0:00:45]} Nbd7 {[%emt 0:00:03]} 6. Qc2 {[%emt 0:00:38]} Bd6 {[%emt 0:00:04]} 7. Bd3 {[%emt 0:00:01]} O-O {[%emt 0:00:14]} 8. O-O {[%emt 0:02:50]} dxc4 {[%emt 0:00:04]} 9. Bxc4 {[%emt 0:00:05]} b5 {[%emt 0:00:09]} 10. Bd3 {[%emt 0:11:59]} Bb7 {[%emt 0:00:03]} 11. a4 {[%emt 0:09:42] D46: Semi-Slav: 5 e3 Nbd7 6 Bd3, Black avoids the Meran.} (11. Ng5 $11 {is more appropriate.}) 11... b4 $15 {[%emt 0:00:14]} 12. Ne4 {[%emt 0:04:31]} Nxe4 {[%emt 0:00:39]} 13. Bxe4 {[%emt 0:00:01] Black is slightly better.} f5 {[%emt 0:00:18]} 14. Bd3 {[%emt 0:01:45]} (14. Bxc6 $2 Rc8 15. Qb3 Rxc6 $19) 14... c5 {[%emt 0:00:33][%cal Bc6c5,Bc5c4][%mdl 32] [#] Threatens to win with ...Bxf3.} 15. Be2 $146 {[%emt 0:04:22]} (15. Qe2 $15) ({Predecessor:} 15. Qe2 Rc8 16. Ba6 Bxa6 17. Qxa6 Qb6 18. Qc4 Rfe8 19. Bd2 cxd4 20. Qxd4 Qxd4 21. Nxd4 {1-0 (59) Pultinevicius,P (2512)-Geller,J (2521) Chess.com INT 2020}) 15... Rc8 $17 {[%emt 0:03:50]} 16. Qd1 {[%emt 0:01:49]} c4 {[%emt 0:03:52]} 17. a5 {[%emt 0:04:16]} Bd5 {[%emt 0:05:16]} 18. Qa4 {[%emt 0:06:59]} Rf6 {[%emt 0:10:21]} 19. g3 {[%emt 0:19:42]} Qe8 {[%emt 0:14:36]} 20. Ne5 {[%emt 0:08:11]} (20. Bd2 $17) 20... Nxe5 $19 {[%emt 0:11:55]} (20... Bxe5 21. dxe5 Nxe5 22. Qxe8+ Rxe8 23. f4 $17) 21. dxe5 {[%emt 0:00:30]} Bxe5 {[%emt 0:00:25]} 22. Qxb4 {[%emt 0:00:33]} c3 {[%emt 0:05:38]} 23. Qa3 {[%emt 0:03:15]} Rf7 {[%emt 0:01:48]} ({Better is} 23... f4 24. exf4 Bd4 25. bxc3 Bxc3) 24. b4 {[%emt 0:04:58]} (24. bxc3 $17 Rxc3 25. Qa4) 24... Bd6 {[%emt 0:08:10]} 25. Qa4 {[%emt 0:08:37]} Qxa4 {[%emt 0:04:35]} 26. Rxa4 {[%emt 0:00:02]} Bc4 {[%emt 0:02:08] 0x0.001e3b72c7c7dp-1022s more active pieces. The white rooks are badly placed.} 27. Bxc4 {[%emt 0:00:51]} Rxc4 {[%emt 0:00:06]} 28. Rd1 {[%emt 0:00:05]} Bf8 {[%emt 0:00:59]} (28... Bxb4 $2 29. Rd8+ Rf8 30. Rxf8+ Kxf8 31. Rxb4 $1 $18 {[%mdl 512]}) (28... Rxb4 $17 29. Rxb4 Bxb4) 29. a6 {[%emt 0:01:47]} Rfc7 {[%emt 0:08:23]} (29... Rxb4 $6 30. Rxb4 Bxb4 31. Rd8+ Rf8 32. Rd7 $11) 30. Rd8 {[%emt 0:01:12]} Kf7 $36 {[%emt 0:01:07][%mdl 2048] Black is really pushing.} 31. Rb8 {[%emt 0:00:22]} Bd6 {[%emt 0:01:13]} 32. Kf1 {[%emt 0:00:55] [#]} e5 $1 {[%emt 0:00:38][%cal Be6e5,Be5e4][%mdl 32]} 33. Ke2 {[%emt 0:01:37]} Ke6 {[%emt 0:00:06]} 34. Kd3 {[%emt 0:01:20]} c2 {[%emt 0:03:49]} 35. Rb7 {[%emt 0:00:18]} e4+ {[%emt 0:00:26]} 36. Kd2 {[%emt 0:00:46]} (36. Ke2 $17) 36... Kd7 {[%emt 0:01:10]} 37. Rb5 {[%emt 0:00:45]} (37. Ke2 $142) 37... g6 {[%emt 0:00:17][%cal Of5f4] aiming for ...f4!} (37... Ke6 $2 38. Rb7 $19) 38. Rb8 $2 {[%emt 0:00:15]} (38. Ke2) 38... Be5 $2 {[%emt 0:01:13]} (38... Rc3 $19 {and Black stays clearly on top. White must now prevent ...Rd3+.} 39. Ra3 Rxa3 40. Bxa3 c1=R 41. Bxc1 {[#]} Rxc1 $1 {[%mdl 512]}) 39. Rb7 {[%emt 0:00:50]} (39. Ke2 $17) 39... Bc3+ {[%emt 0:06:36]} 40. Ke2 {[%emt 0:00:00]} Rxb7 {[%emt 0:00:00]} 41. axb7 {[%emt 0:00:08][%mdl 4096] Endgame KRB-KRB} Kc7 {[%emt 0:02:37]} 42. Rxa7 {[%emt 0:01:15]} Kb8 {[%emt 0:01:24]} ({Inferior is} 42... Rxb4 43. b8=R+ Kxb8 44. Ra2 $11) 43. Ra6 {[%emt 0:01:46]} Kxb7 {[%emt 0:03:51]} ({Of course not} 43... Rxb4 $6 44. Ra2 $11) ({Black should play} 43... Bxb4 $17 44. Rb6 Ba5) 44. b5 $11 {[%emt 0:00:22]} Rc5 {[%emt 0:01:37] Strongly threatening ...Bb4.} 45. h4 $2 {[%emt 0:07:59]} (45. f3 $1 $11 {and White has nothing to worry.}) 45... Bb4 $19 {[%emt 0:07:44]} ({Weaker is} 45... Rxb5 46. Ra2 $15) 46. Ra2 {[%emt 0:17:38]} (46. f3 $142) 46... Kb6 {[%emt 0:00:51]} 47. Ra1 $2 {[%emt 0:00:27]} (47. f3) 47... Rd5 {[%emt 0:00:53]} 48. Ra4 {[%emt 0:02:30]} Kxb5 {[%emt 0:00:18]} 49. Ra1 {[%emt 0:00:24]} Rd1 {[%emt 0:00:22] Weighted Error Value: White=0.80/Black=0.23 (precise)} 0-1